fUSD/lending_fUSD_20240428
["ID","MTS","AMOUNT","RATE_DAILY","PERIOD"]
[54350,1714332716483,-500.0,0.0001452,2]
[54351,1714332716492,-584.06,0.0001452,2]
[54352,1714332716502,-946.93,0.0001452,2]
[54353,1714332716512,-1373.99,0.0001452,2]
[54355,1714332716532,-1168.89,0.0001452,2]
[54357,1714332716555,-500.0,0.0001452,2]
[54359,1714332716575,-708.74,0.0001452,2]
[54361,1714332716595,-554.04,0.0001452,2]
[54363,1714332716616,-500.0,0.0001452,2]
[54365,1714332716637,-500.0,0.0001452,2]
[54367,1714332716658,-871.33,0.0001452,2]
[54369,1714332716678,-1418.28,0.0001452,2]
[54371,1714332716699,-500.0,0.0001452,2]
[54373,1714332716722,-800.93,0.0001452,2]
[54375,1714332716741,-6175.8,0.0001452,2]
[54377,1714332716762,-259.648,0.00014553,2]
[54379,1714332716780,-215.0,0.00014553,2]
[54381,1714332716800,-970.0,0.00014553,2]
[54383,1714332716819,-1000.0,0.00014592,2]
[54385,1714332716839,-1200.0,0.00014602,2]
[54387,1714332716858,-400.0,0.00014633,2]
[54389,1714332716878,-254.0,0.0001476,3]
[54391,1714332716898,-500.0,0.00014794,2]
[54393,1714332716917,-722.31,0.00014794,2]
[54395,1714332716935,-443.88,0.00014794,2]
[54397,1714332716954,-602.29,0.00014794,2]
[54399,1714332716973,-500.0,0.00014794,2]
[54401,1714332716992,-544.93,0.00014794,2]
[54403,1714332717011,-500.0,0.00014794,2]
[54405,1714332717030,-565.31,0.00014794,2]
[54407,1714332717049,-500.0,0.00014794,2]
[54409,1714332717068,-549.79,0.00014794,2]
[54411,1714332717087,-547.48,0.00014794,2]
[54413,1714332717106,-500.0,0.00014794,2]
[54415,1714332717125,-500.0,0.00014794,2]
[54417,1714332717144,-500.0,0.00014794,2]
[54419,1714332717164,-795.36,0.00014794,2]
[54421,1714332717183,-500.0,0.00014794,2]
[54423,1714332717202,-517.51,0.00014794,2]
[54425,1714332717221,-500.0,0.00014794,2]
[54427,1714332717240,-500.0,0.00014794,2]
[54429,1714332717259,-504.06,0.00014794,2]
[54431,1714332717280,-520.36,0.00014794,2]
[54433,1714332717301,-530.16,0.00014794,2]
[54435,1714332717321,-519.21,0.00014794,2]
[54437,1714332717341,-1801.26,0.00014794,2]
[54439,1714332717361,-500.0,0.00014794,2]
[54441,1714332717380,-243.07,0.00014794,2]
[54443,1714332717401,-1080.1,0.00014794,2]
[54445,1714332717420,-341.67,0.00014794,2]
[54447,1714332717440,-500.0,0.00014794,2]
[54448,1714332717449,-978.11,0.00014794,2]
[54449,1714332717458,-1921.69,0.00014794,2]
[54451,1714332717477,-689.83,0.00014794,2]
[54453,1714332717496,-713.0,0.00014794,2]
[54455,1714332717515,-500.0,0.00014794,2]
[54457,1714332717534,-500.0,0.00014794,2]
[54459,1714332717554,-664.11,0.00014794,2]
[54461,1714332717577,-951.91,0.00014794,2]
[54463,1714332717596,-1112.23,0.00014794,2]
[54465,1714332717616,-3135.39,0.00014794,2]
[54467,1714332717635,-547.39,0.00014794,2]
[54469,1714332717654,-502.19,0.00014794,2]
[54471,1714332717673,-500.0,0.00014794,2]
[54473,1714332717699,-551.92,0.00014794,2]
[54475,1714332717721,-1723.61,0.00014794,2]
[54477,1714332717743,-667.82,0.00014794,2]
[54479,1714332717764,-500.0,0.00014794,2]
[54481,1714332717783,-500.0,0.00014794,2]
[54483,1714332717803,-925.59,0.00014794,2]
[54485,1714332717822,-1632.62,0.00014794,2]
[54487,1714332717841,-29183.3,0.00014794,2]
[54489,1714332717865,-671.95,0.00014794,2]
[54491,1714332717885,-645.54,0.00014794,2]
[54493,1714332717903,-1428.38,0.00014794,2]
[54495,1714332717922,-500.0,0.00014794,2]
[54497,1714332717941,-500.0,0.00014794,2]
[54499,1714332717959,-1542.66,0.00014794,2]
[54501,1714332717978,-500.0,0.00014794,2]
[54503,1714332717997,-986.66,0.00014794,2]
[54505,1714332718017,-500.0,0.00014794,2]
[54507,1714332718035,-541.9,0.00014794,2]
[54509,1714332718054,-500.0,0.00014794,2]
[54511,1714332718073,-1030.53,0.00014794,2]
[54513,1714332718092,-2596.06,0.00014794,2]
[54515,1714332718111,-1132.59,0.00014794,2]
[54517,1714332718129,-1872.89,0.00014794,2]
[54519,1714332718148,-740.66,0.00014794,2]
[54520,1714332718158,-5665.06,0.00014794,2]
[54521,1714332718168,-1875.79,0.00014794,2]
[54523,1714332718187,-583.55,0.00014794,2]
[54525,1714332718206,-750.57,0.00014794,2]
[54527,1714332718225,-500.0,0.00014794,2]
[54529,1714332718243,-946.93,0.00014794,2]
[54531,1714332718262,-1559.81,0.00014794,2]
[54533,1714332718282,-1535.8,0.00014794,2]
[54535,1714332718301,-500.0,0.00014794,2]
[54537,1714332718319,-500.0,0.00014794,2]
[54539,1714332718338,-585.69,0.00014794,2]
[54541,1714332718357,-5940.9,0.00014794,2]
[54542,1714332718366,-871.33,0.00014794,2]
[54543,1714332718375,-533.96,0.00014794,2]
[54544,1714332718384,-1418.28,0.00014794,2]
[54545,1714332718394,-1888.98,0.00014794,2]
[54546,1714332718404,-500.0,0.00014794,2]
[54547,1714332718414,-151.0,0.00014794,2]
[54549,1714332718433,-1621.44,0.00014794,2]
[54551,1714332718519,-151.0,0.00014794,2]
[54553,1714332718539,-1013.17,0.00014794,2]
[54555,1714332718557,-551.84,0.00014945,2]
[54557,1714332718575,-256.96280775,0.00015,2]
[54559,1714332718595,-500.0,0.00015068,2]
[54561,1714332718613,-895.08,0.00015068,2]
[54563,1714332718631,-548.18,0.00015068,2]
[54565,1714332718650,-602.29,0.00015068,2]
[54567,1714332718669,-500.0,0.00015068,2]
[54569,1714332718688,-558.9,0.00015068,2]
[54571,1714332718706,-958.14,0.00015068,2]
[54573,1714332718729,-500.0,0.00015068,2]
[54575,1714332718747,-547.48,0.00015068,2]
[54577,1714332718768,-500.0,0.00015068,2]
[54579,1714332718787,-500.0,0.00015068,2]
[54581,1714332718809,-500.0,0.00015068,2]
[54583,1714332718827,-795.36,0.00015068,2]
[54585,1714332718845,-500.0,0.00015068,2]
[54587,1714332718862,-517.51,0.00015068,2]
[54589,1714332718881,-500.0,0.00015068,2]
[54591,1714332718900,-500.0,0.00015068,2]
[54593,1714332718919,-504.06,0.00015068,2]
[54595,1714332718937,-520.36,0.00015068,2]
[54597,1714332718956,-530.16,0.00015068,2]
[54599,1714332718975,-519.21,0.00015068,2]
[54601,1714332718993,-1801.26,0.00015068,2]
[54603,1714332719012,-500.0,0.00015068,2]
[54605,1714332719030,-1112.76,0.00015068,2]
[54607,1714332719049,-1633.57,0.00015068,2]
[54609,1714332719067,-500.0,0.00015068,2]
[54611,1714332719086,-1921.69,0.00015068,2]
[54613,1714332719104,-689.83,0.00015068,2]
[54615,1714332719124,-713.0,0.00015068,2]
[54617,1714332719143,-500.0,0.00015068,2]
[54619,1714332719163,-566.2,0.00015068,2]
[54621,1714332719182,-664.11,0.00015068,2]
[54622,1714332719192,-713.48,0.00015068,2]
[54623,1714332719203,-951.91,0.00015068,2]
[54624,1714332719212,-1240.81,0.00015068,2]
[54625,1714332719222,-1112.23,0.00015068,2]
[54626,1714332719231,-1318.94,0.00015068,2]
[54627,1714332719241,-3135.39,0.00015068,2]
[54628,1714332719250,-1141.2,0.00015068,2]
[54629,1714332719260,-547.39,0.00015068,2]
[54630,1714332719269,-1026.71,0.00015068,2]
[54631,1714332719279,-502.19,0.00015068,2]
[54632,1714332719288,-768.49,0.00015068,2]
[54633,1714332719298,-500.0,0.00015068,2]
[54634,1714332719307,-1154.15,0.00015068,2]
[54635,1714332719317,-551.92,0.00015068,2]
[54636,1714332719326,-506.26,0.00015068,2]
[54637,1714332719335,-1723.61,0.00015068,2]
[54638,1714332719344,-1149.55,0.00015068,2]
[54639,1714332719353,-667.82,0.00015068,2]
[54641,1714332719371,-500.0,0.00015068,2]
[54643,1714332719390,-624.73,0.00015068,2]
[54644,1714332719400,-974.35,0.00015068,2]
[54645,1714332719410,-925.59,0.00015068,2]
[54646,1714332719419,-500.0,0.00015068,2]
[54647,1714332719429,-1632.62,0.00015068,2]
[54648,1714332719438,-542.61,0.00015068,2]
[54649,1714332719447,-29183.3,0.00015068,2]
[54650,1714332719456,-2058.85,0.00015068,2]
[54651,1714332719466,-671.95,0.00015068,2]
[54652,1714332719476,-876.76,0.00015068,2]
[54653,1714332719486,-500.0,0.00015068,2]
[54655,1714332719504,-1428.38,0.00015068,2]
[54657,1714332719522,-3955.52,0.00015068,2]
[54659,1714332719541,-502.62,0.00015068,2]
[54661,1714332719560,-654.38,0.00015068,2]
[54663,1714332719579,-500.0,0.00015068,2]
[54665,1714332719598,-1097.95,0.00015068,2]
[54667,1714332719617,-500.0,0.00015068,2]
[54669,1714332719635,-2711.49,0.00015068,2]
[54671,1714332719654,-1460.26,0.00015068,2]
[54673,1714332719673,-1365.07,0.00015068,2]
[54675,1714332719692,-676.21,0.00015068,2]
[54677,1714332719711,-737.82,0.00015068,2]
[54679,1714332719734,-740.66,0.00015068,2]
[54681,1714332719753,-5665.06,0.00015068,2]
[54683,1714332719772,-477.180475,0.00015068,2]
[54685,1714332719793,-151.0,0.00015068,2]
[54687,1714332719812,-583.55,0.00015068,2]
[54689,1714332719831,-750.57,0.00015068,2]
[54691,1714332719849,-500.0,0.00015068,2]
[54693,1714332719881,-946.93,0.00015068,2]
[54695,1714332719900,-1559.81,0.00015068,2]
[54697,1714332719919,-1535.8,0.00015068,2]
[54699,1714332719940,-525.21451467,0.00015068,2]
[54701,1714332719959,-151.0,0.00015068,2]
[54703,1714332719979,-585.69,0.00015068,2]
[54705,1714332719998,-500.0,0.00015068,2]
[54707,1714332720017,-871.33,0.00015068,2]
[54709,1714332720036,-1418.28,0.00015068,2]
[54711,1714332720056,-500.0,0.00015068,2]
[54713,1714332720076,-1621.44,0.00015068,2]
[54715,1714332720096,-800.93,0.00015068,2]
[54717,1714332720115,-625.79,0.00015191,2]
[54719,1714332720134,-307.8905408,0.00015342,2]
[54721,1714332720153,-722.31,0.00015342,2]
[54723,1714332720172,-538.07,0.00015342,2]
[54725,1714332720191,-654.13,0.00015342,2]
[54727,1714332720211,-544.93,0.00015342,2]
[54729,1714332720230,-500.0,0.00015342,2]
[54731,1714332720248,-198.4,0.00015342,2]
[54733,1714332720267,-902.88,0.00015342,2]
[54735,1714332720286,-599.09,0.00015342,2]
[54737,1714332720306,-500.0,0.00015342,2]
[54739,1714332720324,-500.0,0.00015342,2]
[54741,1714332720343,-539.77,0.00015342,2]
[54743,1714332720363,-640.01,0.00015342,2]
[54745,1714332720381,-517.51,0.00015342,2]
[54747,1714332720400,-500.0,0.00015342,2]
[54749,1714332720419,-500.0,0.00015342,2]
[54751,1714332720439,-504.06,0.00015342,2]
[54753,1714332720457,-520.36,0.00015342,2]
[54755,1714332720478,-530.16,0.00015342,2]
[54757,1714332720498,-500.0,0.00015342,2]
[54759,1714332720517,-569.5,0.00015342,2]
[54761,1714332720537,-574.41,0.00015342,2]
[54763,1714332720556,-1080.1,0.00015342,2]
[54765,1714332720575,-904.82,0.00015342,2]
[54767,1714332720594,-978.11,0.00015342,2]
[54768,1714332720604,-1921.69,0.00015342,2]
[54769,1714332720613,-2450.5,0.00015342,2]
[54771,1714332720633,-579.57,0.00015342,2]
[54773,1714332720657,-500.0,0.00015342,2]
[54775,1714332720675,-732.55,0.00015342,2]
[54777,1714332720695,-664.11,0.00015342,2]
[54779,1714332720718,-951.91,0.00015342,2]
[54781,1714332720737,-1112.23,0.00015342,2]
[54783,1714332720755,-3135.39,0.00015342,2]
[54785,1714332720776,-547.39,0.00015342,2]
[54787,1714332720796,-502.19,0.00015342,2]
[54789,1714332720815,-500.0,0.00015342,2]
[54791,1714332720834,-551.92,0.00015342,2]
[54793,1714332720853,-1723.61,0.00015342,2]
[54795,1714332720871,-667.82,0.00015342,2]
[54797,1714332720890,-500.0,0.00015342,2]
[54799,1714332720911,-974.35,0.00015342,2]
[54801,1714332720930,-500.0,0.00015342,2]
[54803,1714332720948,-542.61,0.00015342,2]
[54805,1714332720967,-2058.85,0.00015342,2]
[54807,1714332720986,-876.76,0.00015342,2]
[54809,1714332721004,-645.54,0.00015342,2]
[54811,1714332721022,-500.0,0.00015342,2]
[54813,1714332721040,-500.0,0.00015342,2]
[54815,1714332721059,-1542.66,0.00015342,2]
[54817,1714332721079,-500.0,0.00015342,2]
[54819,1714332721098,-986.66,0.00015342,2]
[54821,1714332721117,-500.0,0.00015342,2]
[54823,1714332721137,-2711.49,0.00015342,2]
[54825,1714332721158,-1460.26,0.00015342,2]
[54827,1714332721178,-1365.07,0.00015342,2]
[54829,1714332721197,-676.21,0.00015342,2]
[54831,1714332721217,-737.82,0.00015342,2]
[54833,1714332721236,-740.66,0.00015342,2]
[54835,1714332721256,-5665.06,0.00015342,2]
[54837,1714332721275,-500.0,0.00015342,2]
[54839,1714332721295,-1411.81,0.00015342,2]
[54841,1714332721314,-2812.04,0.00015342,2]
[54843,1714332721334,-584.06,0.00015342,2]
[54845,1714332721353,-1373.99,0.00015342,2]
[54847,1714332721372,-1168.89,0.00015342,2]
[54849,1714332721393,-500.0,0.00015342,2]
[54851,1714332721415,-500.0,0.00015342,2]
[54853,1714332721434,-500.0,0.00015342,2]
[54855,1714332721455,-5940.9,0.00015342,2]
[54857,1714332721475,-533.96,0.00015342,2]
[54859,1714332721496,-1888.98,0.00015342,2]
[54861,1714332721515,-1621.44,0.00015342,2]
[54863,1714332721535,-254.0,0.0001541,3]
[54865,1714332721555,-900.0,0.00015424,2]
[54867,1714332721576,-500.0,0.00015424,2]
[54869,1714332721596,-895.08,0.00015616,2]
[54871,1714332721615,-548.18,0.00015616,2]
[54873,1714332721636,-602.29,0.00015616,2]
[54875,1714332721657,-500.0,0.00015616,2]
[54877,1714332721677,-558.9,0.00015616,2]
[54879,1714332721697,-958.14,0.00015616,2]
[54881,1714332721723,-547.48,0.00015616,2]
[54883,1714332721743,-237.0,0.00015616,2]
[54885,1714332721765,-421.88494001,0.00015616,2]
[54887,1714332721786,-599.72,0.00015616,2]
[54889,1714332721806,-795.36,0.00015616,2]
[54891,1714332721826,-407.8,0.00015616,2]
[54893,1714332721848,-461.85,0.00015616,2]
[54895,1714332721868,-150.0,0.00015616,2]
[54897,1714332721888,-504.06,0.00015616,2]
[54899,1714332721911,-520.36,0.00015616,2]
[54901,1714332721930,-530.16,0.00015616,2]
[54903,1714332721952,-500.0,0.00015616,2]
[54905,1714332721972,-569.5,0.00015616,2]
[54907,1714332721995,-1112.76,0.00015616,2]
[54908,1714332722005,-1080.1,0.00015616,2]
[54909,1714332722015,-1633.57,0.00015616,2]
[54910,1714332722026,-904.82,0.00015616,2]
[54911,1714332722036,-978.11,0.00015616,2]
[54912,1714332722046,-1921.69,0.00015616,2]
[54913,1714332722055,-689.83,0.00015616,2]
[54914,1714332722066,-2450.5,0.00015616,2]
[54915,1714332722076,-579.57,0.00015616,2]
[54917,1714332722096,-516.552777,0.00015616,2]
[54919,1714332722117,-561.12,0.00015616,2]
[54921,1714332722139,-516.552777,0.00015616,2]
[54923,1714332722162,-500.0,0.00015616,2]
[54925,1714332722182,-151.0,0.00015616,2]
[54927,1714332722203,-151.900239,0.00015616,2]
[54929,1714332722223,-1240.81,0.00015616,2]
[54931,1714332722244,-1318.94,0.00015616,2]
[54933,1714332722264,-1141.2,0.00015616,2]
[54935,1714332722284,-547.39,0.00015616,2]
[54937,1714332722304,-160.088939,0.00015616,2]
[54939,1714332722324,-768.49,0.00015616,2]
[54941,1714332722344,-500.0,0.00015616,2]
[54943,1714332722364,-551.92,0.00015616,2]
[54945,1714332722384,-506.26,0.00015616,2]
[54947,1714332722405,-1149.55,0.00015616,2]
[54949,1714332722426,-259.224662,0.00015616,2]
[54951,1714332722447,-407.65715,0.00015616,2]
[54953,1714332722467,-407.65715,0.00015616,2]
[54954,1714332722477,-1626.01,0.00015616,2]
[54955,1714332722488,-166.17,0.00015616,2]
[54956,1714332722498,-587.34,0.00015616,2]
[54957,1714332722508,-974.35,0.00015616,2]
[54958,1714332722518,-925.59,0.00015616,2]
[54959,1714332722528,-644.05462691,0.00015616,2]
[54960,1714332722538,-1632.62,0.00015616,2]
[54961,1714332722548,-542.61,0.00015616,2]
[54962,1714332722558,-29183.3,0.00015616,2]
[54963,1714332722568,-2058.85,0.00015616,2]
[54964,1714332722578,-151.0,0.00015616,2]
[54965,1714332722588,-671.95,0.00015616,2]
[54966,1714332722598,-876.76,0.00015616,2]
[54967,1714332722608,-645.54,0.00015616,2]
[54969,1714332722628,-1428.38,0.00015616,2]
[54971,1714332722649,-500.0,0.00015616,2]
[54973,1714332722668,-502.62,0.00015616,2]
[54975,1714332722690,-654.38,0.00015616,2]
[54977,1714332722714,-500.0,0.00015616,2]
[54979,1714332722736,-1097.95,0.00015616,2]
[54981,1714332722758,-541.9,0.00015616,2]
[54983,1714332722778,-500.0,0.00015616,2]
[54985,1714332722799,-1030.53,0.00015616,2]
[54987,1714332722820,-1365.07,0.00015616,2]
[54989,1714332722840,-1132.59,0.00015616,2]
[54991,1714332722860,-1872.89,0.00015616,2]
[54993,1714332722881,-5665.06,0.00015616,2]
[54994,1714332722892,-1875.79,0.00015616,2]
[54995,1714332722903,-553.29,0.00015616,2]
[54997,1714332722925,-1411.81,0.00015616,2]
[54999,1714332722945,-2812.04,0.00015616,2]
[55001,1714332722965,-584.06,0.00015616,2]
[55003,1714332722986,-1373.99,0.00015616,2]
[55005,1714332723008,-1168.89,0.00015616,2]
[55007,1714332723030,-185.28,0.00015616,2]
[55009,1714332723049,-500.0,0.00015616,2]
[55011,1714332723068,-500.0,0.00015616,2]
[55013,1714332723087,-5940.9,0.00015616,2]
[55015,1714332723107,-533.96,0.00015616,2]
[55017,1714332723127,-1888.98,0.00015616,2]
[55019,1714332723147,-800.93,0.00015616,2]
[55021,1714332723167,-1081.0,0.00015766,2]
[55023,1714332723187,-895.08,0.0001589,2]
[55025,1714332723207,-548.18,0.0001589,2]
[55027,1714332723226,-602.29,0.0001589,2]
[55029,1714332723245,-500.0,0.0001589,2]
[55031,1714332723265,-558.9,0.0001589,2]
[55033,1714332723286,-958.14,0.0001589,2]
[55035,1714332723306,-547.48,0.0001589,2]
[55037,1714332723327,-238.14,0.0001589,2]
[55039,1714332723346,-539.77,0.0001589,2]
[55040,1714332723356,-795.36,0.0001589,2]
[55041,1714332723367,-640.01,0.0001589,2]
[55042,1714332723377,-517.51,0.0001589,2]
[55043,1714332723387,-500.0,0.0001589,2]
[55044,1714332723397,-150.0,0.0001589,2]
[55045,1714332723408,-269.1478035,0.0001589,2]
[55046,1714332723419,-504.06,0.0001589,2]
[55047,1714332723429,-520.36,0.0001589,2]
[55049,1714332723450,-530.16,0.0001589,2]
[55051,1714332723471,-500.0,0.0001589,2]
[55053,1714332723492,-569.5,0.0001589,2]
[55055,1714332723513,-1112.76,0.0001589,2]
[55057,1714332723534,-1633.57,0.0001589,2]
[55059,1714332723554,-978.11,0.0001589,2]
[55061,1714332723576,-689.83,0.0001589,2]
[55063,1714332723598,-579.57,0.0001589,2]
[55065,1714332723828,-500.0,0.0001589,2]
[55067,1714332723880,-732.55,0.0001589,2]
[55069,1714332723902,-713.48,0.0001589,2]
[55071,1714332723922,-951.91,0.0001589,2]
[55073,1714332723942,-1112.23,0.0001589,2]
[55074,1714332723952,-1318.94,0.0001589,2]
[55075,1714332723962,-3135.39,0.0001589,2]
[55076,1714332723972,-1141.2,0.0001589,2]
[55077,1714332723982,-547.39,0.0001589,2]
[55079,1714332724002,-768.49,0.0001589,2]
[55081,1714332724022,-561.2,0.0001589,2]
[55083,1714332724042,-1154.15,0.0001589,2]
[55085,1714332724061,-1723.61,0.0001589,2]
[55087,1714332724081,-667.82,0.0001589,2]
[55088,1714332724091,-1626.01,0.0001589,2]
[55089,1714332724101,-587.34,0.0001589,2]
[55091,1714332724123,-925.59,0.0001589,2]
[55093,1714332724142,-542.61,0.0001589,2]
[55095,1714332724164,-2058.85,0.0001589,2]
[55097,1714332724184,-876.76,0.0001589,2]
[55099,1714332724203,-500.0,0.0001589,2]
[55101,1714332724224,-500.0,0.0001589,2]
[55103,1714332724243,-502.62,0.0001589,2]
[55105,1714332724263,-654.38,0.0001589,2]
[55107,1714332724283,-500.0,0.0001589,2]
[55109,1714332724302,-1097.95,0.0001589,2]
[55111,1714332724321,-541.9,0.0001589,2]
[55112,1714332724331,-2711.49,0.0001589,2]
[55113,1714332724341,-576.95,0.0001589,2]
[55115,1714332724360,-1030.53,0.0001589,2]
[55117,1714332724379,-1365.07,0.0001589,2]
[55119,1714332724399,-1132.59,0.0001589,2]
[55121,1714332724418,-1872.89,0.0001589,2]
[55123,1714332724438,-5665.06,0.0001589,2]
[55125,1714332724459,-583.55,0.0001589,2]
[55127,1714332724479,-750.57,0.0001589,2]
[55129,1714332724497,-500.0,0.0001589,2]
[55131,1714332724517,-946.93,0.0001589,2]
[55133,1714332724536,-1559.81,0.0001589,2]
[55135,1714332724555,-1535.8,0.0001589,2]
[55137,1714332724574,-500.0,0.0001589,2]
[55139,1714332724593,-500.0,0.0001589,2]
[55141,1714332724612,-5940.9,0.0001589,2]
[55143,1714332724632,-533.96,0.0001589,2]
[55145,1714332724651,-1888.98,0.0001589,2]
[55146,1714332724661,-1621.44,0.0001589,2]
[55147,1714332724671,-800.93,0.0001589,2]
[55148,1714332724680,-150.0,0.00016,2]
[55149,1714332724689,-151.0,0.00016064,2]
[55151,1714332724708,-833.468227,0.00016064,2]
[55153,1714332724729,-833.468227,0.00016064,2]
[55155,1714332724748,-292.169692,0.00016064,2]
[55157,1714332724769,-151.0,0.00016064,2]
[55159,1714332724788,-558.530855,0.00016064,2]
[55161,1714332724810,-16352.6156,0.00016064,2]
[55163,1714332724828,-156.49185542,0.000161,2]
[55165,1714332724848,-722.31,0.00016164,2]
[55167,1714332724867,-538.07,0.00016164,2]
[55169,1714332724886,-654.13,0.00016164,2]
[55171,1714332724906,-544.93,0.00016164,2]
[55173,1714332724924,-582.3,0.00016164,2]
[55175,1714332724943,-902.88,0.00016164,2]
[55177,1714332724961,-599.09,0.00016164,2]
[55179,1714332724980,-539.77,0.00016164,2]
[55181,1714332724999,-640.01,0.00016164,2]
[55183,1714332725018,-500.0,0.00016164,2]
[55185,1714332725038,-504.06,0.00016164,2]
[55187,1714332725057,-500.0,0.00016164,2]
[55189,1714332725077,-151.0,0.00016164,2]
[55191,1714332725096,-306.119201,0.00016164,2]
[55193,1714332725116,-519.21,0.00016164,2]
[55195,1714332725135,-249.66426,0.00016164,2]
[55197,1714332725155,-569.5,0.00016164,2]
[55199,1714332725176,-574.41,0.00016164,2]
[55201,1714332725195,-151.0,0.00016164,2]
[55203,1714332725214,-1633.57,0.00016164,2]
[55204,1714332725224,-904.82,0.00016164,2]
[55205,1714332725235,-151.0,0.00016164,2]
[55207,1714332725254,-1921.69,0.00016164,2]
[55209,1714332725274,-2450.5,0.00016164,2]
[55211,1714332725295,-713.0,0.00016164,2]
[55213,1714332725315,-561.12,0.00016164,2]
[55215,1714332725335,-422.74,0.00016164,2]
[55217,1714332725355,-664.11,0.00016164,2]
[55219,1714332725374,-1240.81,0.00016164,2]
[55221,1714332725394,-1318.94,0.00016164,2]
[55223,1714332725416,-1141.2,0.00016164,2]
[55225,1714332725436,-1026.71,0.00016164,2]
[55227,1714332725455,-502.19,0.00016164,2]
[55229,1714332725475,-1154.15,0.00016164,2]
[55231,1714332725494,-1723.61,0.00016164,2]
[55233,1714332725513,-667.82,0.00016164,2]
[55235,1714332725532,-587.34,0.00016164,2]
[55237,1714332725552,-925.59,0.00016164,2]
[55239,1714332725571,-542.61,0.00016164,2]
[55241,1714332725592,-2058.85,0.00016164,2]
[55243,1714332725611,-876.76,0.00016164,2]
[55245,1714332725631,-500.0,0.00016164,2]
[55247,1714332725651,-159.42,0.00016164,2]
[55249,1714332725670,-502.62,0.00016164,2]
[55251,1714332725691,-654.38,0.00016164,2]
[55253,1714332725711,-500.0,0.00016164,2]
[55255,1714332725734,-1097.95,0.00016164,2]
[55257,1714332725755,-2711.49,0.00016164,2]
[55259,1714332725774,-1030.53,0.00016164,2]